Cogmind - Beta 16 @@@ ROGUE MODE // 2025.11.16 @ 02:50:53 Player: Red Box Result: Destroyed by AG-45802 with Assembled Focal Cannon Performance ------------- Evolutions (3) 1500 Regions Visited (12) 2400 Robots Destroyed (241) 1205 Value Destroyed (6665) 6665 Prototype IDs (51) 1020 Alien Tech Used (0) 0 Bonus (1270) 1270 TOTAL SCORE: 14060 Bonus ------- High Alert Combat Kills 332 Follower Combat Kills 92 Aligned with FarCom 300 Met Imprinter 300 Triggered Deep Caves Wall 500 Friendly Fire -254 Cogmind --------- Core Integrity 0/700 Matter 62/300 Energy 60/100 System Corruption 7% Temperature Warm (139) Movement Core (700) Ox13 Location -7/Deep Caves Parts ------- > --- POWER (1) -------- (None) > --- PROPULSION (2) --- Assembled Alloy Leg > --- UTILITY (8) ------ High-capacity Storage Unit Improved Armor Integrity Analyzer > --- WEAPON (2) ------- (None) > --- INVENTORY (20) --- Combat Antigrav System Advanced EM Shield Sensor Drone Bay (15/20) Heavy EM Pulse Gun Enhanced Force Rifle Bore Cannon Heavy Rocket Launcher Molecular Scythe GAL Module Peak State ------------ > --- POWER ------------ Mini Fusion Reactor > --- PROPULSION ------- Improved Titanium Leg Advanced Myomer Leg > --- UTILITY ---------- High-capacity Storage Unit Advanced Targeting Computer Improved Target Analyzer Hardened Heavy Armor Plating Advanced EM Shield System Shield Sensor Drone Bay > --- WEAPON ----------- Heavy Tesla Rifle Molecular Scythe > --- INVENTORY -------- Cold Fusion Reactor Mini Fusion Reactor Armored Wheel Combat Antigrav System Coolant Injector Makeshift Sensor Array Experimental Core Analyzer Improved Armor Integrity Analyzer Hardened Heavy Armor Plating Improved Medium Armor Plating Advanced EM Shield Advanced Component Analysis Suite Improved System Guard System Purifier Enhanced Force Rifle Enhanced Force Rifle 8R-AWN's Boregun Heavy Rocket Launcher Deploy-a-Sentry [Rating: 85] Favorites ----------- Power Heavy Ion Engine Engine Heavy Ion Engine Reactor Mini Fusion Reactor Propulsion Aluminum Leg Treads Light Treads Leg Aluminum Leg Wheel Armored Wheel Utility High-capacity Storage Unit Device Sensor Drone Bay Storage High-capacity Storage Unit Processor Advanced Targeting Computer Hackware System Shield Protection Hardened Heavy Armor Plating Weapon Light Cannon Energy Gun Heavy Tesla Rifle Energy Cannon EM Pulse Cannon Ballistic Gun Improved Assault Rifle Ballistic Cannon Light Cannon Launcher Rocket Launcher Special Weapon Mining Laser Impact Weapon Flail Slashing Weapon Molecular Scythe Build | -11 -10 -10 -9 -9 -9 -8 -8 -7 -7 -7 -7 -7 ------- Run | Yrd Mat Min Mat Min Exi Min Mat Fac Low Low Zio Dee Slots Evolved 6 | . . . 2 . . . 2 2 . . . . Power . | . . . . . . . . . . . . . Propulsion . | . . . . . . . . . . . . . Utility 6 | . . . 2 . . . 2 2 . . . . Weapon . | . . . . . . . . . . . . . Parts Attached 162 | 8 10 2 26 3 25 1 38 19 2 5 13 10 Power 12 | 1 1 . 3 . 1 . 3 1 . . . 2 Engine 10 | 1 1 . 3 . 1 . 3 . . . . 1 Core . | . . . . . . . . . . . . . Reactor 2 | . . . . . . . . 1 . . . 1 Propulsion 31 | 2 . . 6 1 9 . 6 2 1 2 . 2 Treads 11 | . . . 3 1 1 . 4 . . 1 . 1 Leg 15 | 2 . . . . 8 . 1 2 1 . . 1 Wheel 5 | . . . 3 . . . 1 . . 1 . . Hover . | . . . . . . . . . . . . . Flight . | . . . . . . . . . . . . . Utility 63 | 2 3 2 10 . 10 . 13 9 . 3 8 3 Device 24 | 1 . 1 4 . 5 . 3 6 . 1 2 1 Storage 7 | 1 2 1 1 . 1 . . . . 1 . . Processor 9 | . 1 . . . 2 . 2 1 . 1 2 . Hackware 3 | . . . 1 . . . 1 . . . 1 . Protection 20 | . . . 4 . 2 . 7 2 . . 3 2 Artifact . | . . . . . . . . . . . . . Weapon 56 | 3 6 . 7 2 5 1 16 7 1 . 5 3 Energy Gun 22 | . 1 . 4 1 2 1 5 5 . . 1 2 Energy Cannon 9 | . . . . . . . 7 1 . . 1 . Ballistic Gun 6 | 3 . . . . 2 . 1 . . . . . Ballistic Cannon 7 | . 3 . 1 . 1 . 1 . . . . 1 Launcher 6 | . 1 . 1 1 . . 1 . 1 . 1 . Special Weapon 2 | . 1 . . . . . . . . . 1 . Impact Weapon 2 | . . . 1 . . . 1 . . . . . Slashing Weapon 2 | . . . . . . . . 1 . . 1 . Piercing Weapon . | . . . . . . . . . . . . . Special Melee Weapon . | . . . . . . . . . . . . . Unidentified Prototypes 14 | . 1 1 . . 2 . 2 7 . . 1 . Parts Lost 66 | . 1 . 7 3 20 . 10 1 . . 3 21 Power 6 | . . . . . 2 . 1 . . . . 3 Propulsion 15 | . . . 2 1 6 . 2 . . . . 4 Utility 27 | . . . 3 . 7 . 5 1 . . 2 9 Weapon 18 | . 1 . 2 2 5 . 2 . . . 1 5 Highest Loss Streak 13 | . 1 . 3 2 7 . 7 1 . . 2 13 To Critical Strikes 5 | . . . . . 5 . . . . . . . Average Backups 15 | 5 11 14 15 19 10 19 18 17 17 17 17 15 Power 1 | . . . 1 2 1 2 1 1 1 1 1 . Propulsion 2 | 3 4 3 1 1 1 3 2 2 3 3 2 3 Utility 5 | . 1 4 5 8 3 10 9 7 6 5 5 3 Weapon 5 | 1 5 6 6 7 4 3 3 6 7 7 7 7 Tool/Special . | . . . . . . . . . . . . . Unused Backups 23 | . 1 1 5 . 7 . 2 4 . 1 1 1 Power 6 | . . . 1 . 3 . . 2 . . . . Propulsion 2 | . . . . . 1 . . . . . . 1 Utility 8 | . . . 2 . 3 . 2 1 . . . . Weapon 6 | . 1 1 2 . . . . 1 . 1 . . Tool/Special 1 | . . . . . . . . . . . 1 . Average Slot Usage (%) 93 | . 99 100 99 99 81 100 95 90 91 91 92 91 Engine 7 | . 13 14 10 11 10 11 8 3 . . . . Reactor 2 | . . . . . . . . 3 7 7 7 6 Treads 6 | . . . 8 20 9 . 11 . . . 6 6 Leg 9 | . 27 28 5 . 11 22 4 13 15 13 . 1 Wheel 3 | . . . 8 1 . . 1 . . 1 7 6 Device 13 | . 12 . 12 22 17 11 9 13 14 19 19 13 Storage 9 | . 14 14 11 11 8 11 9 7 7 7 7 7 Processor 9 | . 1 14 9 . 6 11 15 14 7 7 10 14 Hackware 1 | . . . 2 . . . 2 7 7 2 . . Protection 10 | . . . 8 11 6 11 14 7 15 14 14 16 Energy Gun 8 | . . . 16 13 3 . 4 13 13 14 9 11 Energy Cannon 1 | . . . . . . . 12 . . . . . Ballistic Gun 1 | . 7 . . . 3 21 . . . . . . Ballistic Cannon 3 | . 17 25 3 . . . . . . . . 1 Peak Build Rating 85 | 9 13 15 23 22 49 51 53 85 78 81 79 82 Average Rating 42 | 5 10 10 19 21 21 49 44 71 75 75 72 65 On Entrance 38 | . 9 10 11 22 19 49 51 44 69 75 73 68 Avg Prop Armor Cover (%) 6 | . . . 8 8 9 . 6 . . 3 5 5 Naked Turns . | . . . . . . . . . . . . . Heaviest Build 105 | 14 31 51 63 64 75 76 91 96 104 103 105 99 Greatest Support 58 | 20 20 20 40 40 40 40 43 58 48 48 12 50 Greatest Overweight (x) 8 | 2 1 2 6 6 2 1 5 5 2 8 8 8 Average Overweight (x) 2 | . . 1 2 1 . 1 1 1 1 2 7 6 Largest Inventory Capacity 35 | 8 15 20 20 20 20 20 20 20 20 35 20 20 Average Capacity 18 | 7 12 16 20 20 16 20 20 20 20 20 20 20 Most Carried 24 | 7 15 20 20 20 20 20 20 20 20 24 20 20 Average Carried 17 | 6 11 15 19 18 11 19 19 19 19 19 19 17 Final Capacity 20 | 8 15 20 20 20 20 20 20 20 20 20 20 20 Final Carried 20 | 7 14 20 20 19 20 20 20 20 20 20 20 9 Class Distribution -------------------- 71% | Mutant 19% | Commander-Mutant 9% | Scavenger-Mutant Dominant Class ---------------- Mutant | -10/Materials Mutant | -10/Mines Mutant | -9/Materials Mutant | -9/Mines Mutant | -9/Exiles Mutant | -8/Mines Mutant | -8/Materials Mutant | -7/Factory Mutant | -7/Lower Caves Commander-Mutant | -7/Lower Caves Commander-Mutant | -7/Zion Mutant | -7/Deep Caves Resources | -11 -10 -10 -9 -9 -9 -8 -8 -7 -7 -7 -7 -7 ----------- Run | Yrd Mat Min Mat Min Exi Min Mat Fac Low Low Zio Dee Matter Collected 6329 | 335 449 216 930 62 1416 266 953 541 168 445 430 118 Remotely . | . . . . . . . . . . . . . Salvage Created 9607 | 135 275 147 2348 277 443 382 2264 1288 169 206 1000 673 Parts 577 | 12 23 7 146 22 81 20 113 71 9 10 56 7 Haulers Intercepted 8 | . . . 5 . . . 3 . . . . . Recyclers Shooed 4 | 1 . . 1 . . . 2 . . . . . Parts Field Recycled . | . . . . . . . . . . . . . Retrieved Matter . | . . . . . . . . . . . . . Parts Self-Destructed 9 | . . . . . . . . . 9 . . . Prevented 1 | . . . . . . . . . 1 . . . Parts Restored . | . . . . . . . . . . . . . Kills | -11 -10 -10 -9 -9 -9 -8 -8 -7 -7 -7 -7 -7 ------- Run | Yrd Mat Min Mat Min Exi Min Mat Fac Low Low Zio Dee Combat Hostiles Destroyed 205 | . 12 3 48 7 6 9 43 18 6 2 7 44 Guns 64 | . . . 19 3 . 9 7 12 1 2 4 7 Cannons 43 | . 8 3 10 . 1 . 19 2 . . . . AOE 90 | . 4 . 18 4 5 . 13 4 5 . 3 34 Classes Destroyed 24 | 2 3 . 7 2 2 . 1 3 . 1 2 1 Worker 4 | . . . 3 . . . 1 . . . . . Builder 5 | . . . 2 2 . . 1 . . . . . Tunneler 3 | 3 . . . . . . . . . . . . Hauler 8 | . . . 5 . . . 3 . . . . . Recycler 9 | 1 . 1 1 . . 1 2 3 . . . . Operator 1 | . . . 1 . . . . . . . . . Drone 1 | . . . . . . . . 1 . . . . Turret 1 | . . . . . 1 . . . . . . . Watcher 17 | . 3 . 5 . . . 4 5 . . . . Swarmer 43 | . 6 1 12 . . 6 8 7 3 . . . Grunt 68 | . 6 2 24 5 . 3 23 2 3 . . . Brawler 5 | . . . 1 . . . 3 . . . 1 . Duelist 1 | . . . . 1 . . . . . . . . Protector 1 | . . . 1 . . . . . . . . . Sentry 20 | . . . 10 . . . 8 2 . . . . Specialist 2 | . . . . . . . . 2 . . . . Hunter 2 | . . . . . . . 1 1 . . . . Programmer 4 | . . . . . . . . 4 . . . . Zionite 34 | . . . . . 7 . . . . . 27 . Packrat 1 | . . . . . . . . . . 1 . . Assembled 48 | . . . . 1 6 . . . . . . 41 Golem 3 | . . . . . . . . . . . . 3 Surgeon 1 | . . . . . . . . . . . 1 . Martyr 1 | . . . . . . . . . . . 1 . Mutant 7 | . . . . . . . . . . 2 5 . Best Kill Streak 35 | 2 4 2 8 5 6 4 6 4 3 1 26 35 Combat Bots Only 35 | . 4 2 6 3 6 3 5 4 3 1 3 35 Max Kills in Single Turn 21 | 1 2 1 3 3 2 1 4 3 3 1 2 21 Gunslinging 1 | . . . 1 . . . . . . . . . Exploded 21 | . 2 . 2 2 1 . 3 3 3 . 2 21 Melee . | . . . . . . . . . . . . . Uniques/NPCs Destroyed 5 | . . . . . 4 . . . . . 1 . 8R-AWN (-9/Exiles) EX-BIN (-9/Exiles) EX-DEC (-9/Exiles) EX-HEX (-9/Exiles) Imprinter (-7/Zion) Combat | -11 -10 -10 -9 -9 -9 -8 -8 -7 -7 -7 -7 -7 -------- Run | Yrd Mat Min Mat Min Exi Min Mat Fac Low Low Zio Dee Hostile Shots Fired 956 | . 60 13 131 23 150 7 193 138 23 2 80 136 Missed 262 | . 23 3 39 8 29 1 44 46 8 . 27 34 Hits 694 | . 37 10 92 15 121 6 149 92 15 2 53 102 Melee 31 | . . . . 10 . . 2 . . . 4 15 Projectile 663 | . 37 10 92 5 121 6 147 92 15 2 49 87 AOE 3 | . . . . . . . . . . . 3 . Critical Strikes 44 | . 1 . 1 . 26 . 8 5 . . 2 1 Part Disruptions 2 | . . . . . 1 . . . . . 1 . Damage Taken 12298 | . 433 115 1140 350 1974 60 2184 1438 248 36 970 3350 Core 1391 | . 51 . 165 14 215 . 215 184 52 . 61 434 Absorbed by Shields 405 | . . . 137 20 248 . . . . . . . Ignored by Resistances 96 | . . . . . . . 42 54 . . . . Regen/Repaired (Parts) 643 | . 192 . 143 . . . 84 . . . 224 . Core Remaining (%) 60 | 100 . 79 . . . 1 60 . . . . . Volleys Fired 626 | 15 51 8 96 10 112 17 104 60 23 35 53 42 Largest 2 | 2 2 2 2 2 2 2 2 2 2 2 2 2 Hottest 181 | 40 100 60 100 90 98 53 126 162 135 135 181 165 Shots Fired 1048 | 30 88 15 180 18 157 24 181 112 29 39 104 71 Gun 659 | 30 11 . 117 14 78 24 60 104 27 39 99 56 Cannon 290 | . 59 15 47 . 38 . 114 5 . . . 12 Launcher 87 | . 8 . 14 4 41 . 7 3 2 . 5 3 Special 12 | . 10 . 2 . . . . . . . . . Kinetic 332 | 30 70 15 47 . 82 24 18 . 4 28 . 14 Thermal 280 | . 10 . 2 . 20 . 20 99 15 3 98 13 Explosive 39 | . 8 . 2 4 5 . 7 3 2 . 5 3 Electromagnetic 397 | . . . 129 14 50 . 136 10 8 8 1 41 Robot Hit Streak 20 | 3 5 7 20 9 8 5 19 7 10 6 15 10 Robot Miss Streak 8 | 1 8 1 4 1 6 2 3 3 1 2 2 5 Penetration Max 1 | . . . . . . 1 1 . . . . 1 Secondary Targets 3 | . . . 1 . . . . . . . 2 . Max Gunslinging Chain 1 | . . . 1 . . . . . . . 1 . Autonomous 14 | . . . . . 14 . . . . . . . Shots Hit Robots 674 | 19 31 10 136 12 90 15 133 68 7 23 82 48 Core Hits 508 | 6 17 5 93 17 46 12 83 38 7 6 53 125 Critical Kills 14 | . . . . . 1 6 1 2 . 1 2 1 Critical Parts Destroyed 26 | . . . . . 4 . 1 12 1 4 4 . Critical Strikes 56 | . . 1 1 . 6 6 8 20 1 5 6 2 Burn 3 | . . . . . . . 1 2 . . . . Destroy 39 | . . . . . 2 6 2 16 1 5 6 1 Blast 2 | . . 1 1 . . . . . . . . . Corrupt 8 | . . . . . . . 5 2 . . . 1 Smash 4 | . . . . . 4 . . . . . . . Melee Attacks 98 | . . . 4 . 21 . 16 14 12 4 26 1 Impact 48 | . . . 4 . 21 . 16 7 . . . . Slashing 50 | . . . . . . . . 7 12 4 26 1 Piercing . | . . . . . . . . . . . . . Sneak Attacks . | . . . . . . . . . . . . . Combat Hostiles . | . . . . . . . . . . . . . Follow-up Attacks . | . . . . . . . . . . . . . Damage Inflicted 20735 | 190 733 168 3712 473 2302 249 4410 2128 537 399 2506 2928 Guns 8840 | 190 63 . 1696 164 588 249 895 1651 124 399 1984 837 Cannons 4132 | . 380 168 679 . 526 . 2226 153 . . . . Explosions 6923 | . 290 . 1337 309 348 . 1289 324 413 . 522 2091 Melee 840 | . . . . . 840 . . . . . . . Ramming . | . . . . . . . . . . . . . Kinetic 3135 | 190 443 168 679 . 755 249 278 . 37 296 . 40 Thermal 5706 | . . . 600 . 348 . 824 1612 . . 1984 338 Explosive 5098 | . 290 . 176 309 222 . 856 272 413 . 522 2038 Electromagnetic 5956 | . . . 2257 164 137 . 2452 244 87 103 . 512 Impact 840 | . . . . . 840 . . . . . . . Slashing . | . . . . . . . . . . . . . Piercing . | . . . . . . . . . . . . . Highest Corruption 14 | . . . . 2 5 5 . 2 2 2 14 7 Average Corruption 2 | . . . . 2 3 5 . 2 2 2 6 5 Corruption Purged 14 | . . . . . . . . . . . 14 . Corruption Blocked . | . . . . . . . . . . . . . Effects 176 | . . . . . 89 17 . 3 24 30 13 . Message Errors 45 | . . . . . 19 3 . 1 8 11 3 . Matter Fused 43 | . . . . . 23 6 . 1 3 9 1 . Heat Flow Errors 20 | . . . . . 11 . . . 4 3 2 . Energy Discharges 19 | . . . . . 11 2 . . 2 1 3 . Parts Rejected 2 | . . . . . . . . . 1 . 1 . Parts Fused 7 | . . . . . 6 . . . 1 . . . Data Loss (minor) 15 | . . . . . 9 1 . . 3 1 1 . Data Loss (major) 9 | . . . . . 3 3 . . . 2 1 . Misfires 11 | . . . . . 3 1 . 1 2 3 1 . Alerts 3 | . . . . . 2 1 . . . . . . Weapon Failures 2 | . . . . . 2 . . . . . . . Overload Shots . | . . . . . . . . . . . . . Overflow Damage 563 | . 3 . 51 . 318 . 54 35 64 . 5 33 Projectiles 28 | . 3 . . . . . 14 11 . . . . Explosions 217 | . . . 51 . . . 40 24 64 . 5 33 Melee 318 | . . . . . 318 . . . . . . . Knockbacks 20 | . 3 . 3 . 14 . . . . . . . Impact 2 | . . . . . 2 . . . . . . . Kinetic 18 | . 3 . 3 . 12 . . . . . . . Secondary . | . . . . . . . . . . . . . Self-Inflicted Damage 567 | . . . 163 47 69 . 24 46 . . 146 72 Shots 20 | . . . 6 1 4 . 1 1 . . 4 3 Rammed . | . . . . . . . . . . . . . Targets Rammed . | . . . . . . . . . . . . . Kicked . | . . . . . . . . . . . . . Crushed . | . . . . . . . . . . . . . Highest Temperature 555 | . 81 48 203 1 311 9 555 396 214 275 236 331 Average Temperature 95 | . 21 32 53 1 99 9 132 92 48 96 91 139 Received Heat Transfer 2467 | . 150 57 313 43 . 9 1116 162 117 . 74 426 Effects 14 | . . . . . 3 . 10 1 . . . . Shutdowns 1 | . . . . . . . . 1 . . . . Energy Bleed 6 | . . . . . 2 . 4 . . . . . Interference 1 | . . . . . . . 1 . . . . . Matter Decay 2 | . . . . . 1 . 1 . . . . . Short Circuit 2 | . . . . . . . 2 . . . . . Damage (minor) 1 | . . . . . . . 1 . . . . . Damage (major) 1 | . . . . . . . 1 . . . . . Siege Activations . | . . . . . . . . . . . . . Martial Activations . | . . . . . . . . . . . . . Shielding Activations . | . . . . . . . . . . . . . Robots Disrupted . | . . . . . . . . . . . . . Combat Hostiles . | . . . . . . . . . . . . . Robots Corrupted 10 | . . . 2 . 2 . 3 . . . . 3 Combat Hostiles 7 | . . . 1 . . . 3 . . . . 3 Parts Fried 32 | . . . 14 2 4 . 10 . . . 2 . Impact Corruptions 7 | . . . . . 7 . . . . . . . Robots Melted 1 | . . . . . . . 1 . . . . . Combat Hostiles 1 | . . . . . . . 1 . . . . . Parts Melted 11 | . . . . . . . 3 6 . . 2 . Heat Transferred 8548 | . . . 800 . 481 . 1277 2528 . . 2937 525 Parts Sabotaged . | . . . . . . . . . . . . . Parts Stolen . | . . . . . . . . . . . . . Parts Stripped . | . . . . . . . . . . . . . Power Chain Reactions 22 | . . . 15 . . . 5 1 . . . 1 Alert | -11 -10 -10 -9 -9 -9 -8 -8 -7 -7 -7 -7 -7 ------- Run | Yrd Mat Min Mat Min Exi Min Mat Fac Low Low Zio Dee Maximum Alert Level 3 | . . . 3 1 . . 3 1 . . . . Low Security (%) 61 | 100 100 100 40 78 . 100 44 57 . . . . Level 1 11 | . . . 9 21 . . 11 42 . . . . Level 2 21 | . . . 34 . . . 43 . . . . . Level 3 4 | . . . 15 . . . 1 . . . . . Level 4 . | . . . . . . . . . . . . . Level 5 . | . . . . . . . . . . . . . High Security . | . . . . . . . . . . . . . Max Security . | . . . . . . . . . . . . . Peak Influence 720 | 5 122 54 720 280 . 96 720 293 . . . . Initial 280 | . . . . 280 . . 23 210 . . . . Average 219 | . 27 1 368 105 . 25 302 195 . . . . Influence Increases 4705 | 20 438 79 1511 177 . 231 1372 737 140 . . . Destroy 0b10 Robot/C 2920 | . 240 60 940 120 . 180 860 400 120 . . . Destroy 0b10 Robot/NC 245 | 20 15 5 85 10 . 5 55 50 . . . . Destroy Leader 682 | . 56 10 240 20 . 30 184 122 20 . . . Allied During Kill 9 | . . . . . . . . 9 . . . . Successful Hack 195 | . 25 4 20 . . . 38 108 . . . . Select Force Hacks 120 | . 30 . 60 . . . 30 . . . . . Disable Machine 165 | . . . 90 . . 15 60 . . . . . Destroy Structure 249 | . 42 . 61 27 . 1 85 33 . . . . Partial Spotted 15 | . . . . . . . . 15 . . . . Lose Combat Pursuer 105 | . 30 . 15 . . . 60 . . . . . Influence Decreases 4705 | 20 438 79 791 896 1 170 971 946 393 . . . Entered New Map 825 | . . . . 440 1 . 38 252 94 . . . Time Decay 3110 | 20 428 79 541 426 . 170 523 624 299 . . . Lost Part 220 | . 10 . 70 30 . . 100 10 . . . . Lost Ally 100 | . . . 30 . . . 10 60 . . . . Purge Threat 450 | . . . 150 . . . 300 . . . . . Squads Dispatched 22 | . 3 . 5 1 . . 5 8 . . . . Investigation 10 | . 3 . 3 . . . 3 1 . . . . Extermination 4 | . . . . . . . . 4 . . . . Reinforcement 6 | . . . 1 1 . . 1 3 . . . . Assault 2 | . . . 1 . . . 1 . . . . . Garrison . | . . . . . . . . . . . . . Intercept . | . . . . . . . . . . . . . Searches Triggered . | . . . . . . . . . . . . . Construction Impeded 1 | . . . . 1 . . . . . . . . Haulers Reinforced . | . . . . . . . . . . . . . Active Scanning Responses . | . . . . . . . . . . . . . Cargo Convoy Interrupts 1 | . . . . . . . . 1 . . . . Stealth | -11 -10 -10 -9 -9 -9 -8 -8 -7 -7 -7 -7 -7 --------- Run | Yrd Mat Min Mat Min Exi Min Mat Fac Low Low Zio Dee Distress Signals 6 | . 2 . 1 . . . 2 1 . . . . Communications Jammed . | . . . . . . . . . . . . . Distress Signals . | . . . . . . . . . . . . . Times Spotted 317 | . 23 4 54 11 36 4 60 33 12 1 35 44 Peak Tracking Total 29 | . 4 3 5 17 9 3 7 4 7 1 8 29 Tactical Retreats 28 | . 2 . 1 1 18 . 3 . . . 2 1 Traps | -11 -10 -10 -9 -9 -9 -8 -8 -7 -7 -7 -7 -7 ------- Run | Yrd Mat Min Mat Min Exi Min Mat Fac Low Low Zio Dee Traps Triggered 1 | . 1 . . . . . . . . . . . Indirectly . | . . . . . . . . . . . . . Trap Hack Attempts . | . . . . . . . . . . . . . Triggered . | . . . . . . . . . . . . . Disarmed . | . . . . . . . . . . . . . Reprogrammed 6 | . . . 6 . . . . . . . . . Reused 4 | . . . . . 4 . . . . . . . Traps Extracted . | . . . . . . . . . . . . . Installed 4 | . . . . . 4 . . . . . . . Triggered . | . . . . . . . . . . . . . Most Traps Carried 5 | . . 5 5 4 4 . . . . . . . Machines | -11 -10 -10 -9 -9 -9 -8 -8 -7 -7 -7 -7 -7 ---------- Run | Yrd Mat Min Mat Min Exi Min Mat Fac Low Low Zio Dee Machines Disabled 31 | . . . 6 . 13 1 4 . . 3 1 3 Max in Single Turn 2 | . . . 1 . 2 1 1 . . 1 1 1 Machines Repaired . | . . . . . . . . . . . . . Machines Dismantled . | . . . . . . . . . . . . . Machines Sabotaged . | . . . . . . . . . . . . . Overloaded Fab Kills . | . . . . . . . . . . . . . Hacking | -11 -10 -10 -9 -9 -9 -8 -8 -7 -7 -7 -7 -7 --------- Run | Yrd Mat Min Mat Min Exi Min Mat Fac Low Low Zio Dee Machines Accessed 59 | . 10 2 16 1 2 . 17 10 . 1 . . Terminals 35 | . 8 1 11 1 . . 10 4 . . . . Fabricators 1 | . . . . . . . . 1 . . . . Repair Stations 5 | . 1 . 1 . . . 2 1 . . . . Recycling Units 7 | . 1 . 2 . . . 2 2 . . . . Scanalyzers 5 | . . . 2 . . . 2 1 . . . . Garrison Access 2 | . . . . . . . 1 1 . . . . Total Hacks 223 | . 35 7 73 3 7 . 68 29 . 1 . . Successful 135 | . 21 4 52 1 7 . 39 10 . 1 . . Failed 85 | . 13 3 20 2 . . 28 19 . . . . Catastrophic 12 | . 2 . 1 . . . 3 6 . . . . Database Lockouts 3 | . 1 . 1 . . . 1 . . . . . Manual 106 | . 25 6 33 4 1 . 28 4 . . 5 . Terminals 125 | . 26 6 42 3 . . 36 12 . . . . Fabricators 2 | . . . . . . . . 2 . . . . Repair Stations 33 | . 6 . 11 . . . 12 4 . . . . Recycling Units 23 | . 3 . 9 . . . 6 5 . . . . Scanalyzers 25 | . . . 11 . . . 10 4 . . . . Garrison Access 6 | . . . . . . . 4 2 . . . . Terminal Hacks 40 | . 4 4 9 1 7 . 11 3 . 1 . . Record 6 | . . . . . 6 . . . . . . . Robot Schematic 1 | . . . . . . . . 1 . . . . Robot Analysis 10 | . 1 3 1 1 . . 4 . . . . . Prototype ID Bank 6 | . 2 . 3 . . . 1 . . . . . Open Door 2 | . . 1 . . . . . . . 1 . . Branch Access Points 3 | . . . 1 . . . 1 1 . . . . Machine Index 1 | . . . 1 . . . . . . . . . Terminal Index 2 | . 1 . . . . . 1 . . . . . Unreport Threat 3 | . . . 1 . . . 2 . . . . . Locate Traps 3 | . . . . . . . 2 1 . . . . Reprogram Traps 1 | . . . 1 . . . . . . . . . Hauler Manifests 1 | . . . 1 . . . . . . . . . Proto ID Catalog 1 | . . . . . 1 . . . . . . . Fabricator Hacks 2 | . . . . . . . . 2 . . . . Network Status 1 | . . . . . . . . 1 . . . . Build 1 | . . . . . . . . 1 . . . . Repair Station Hacks 28 | . 6 . 10 . . . 10 2 . . . . Scan Component 15 | . 3 . 5 . . . 5 2 . . . . Repair 13 | . 3 . 5 . . . 5 . . . . . Recycling Unit Hacks 4 | . 1 . 2 . . . 1 . . . . . Retrieve Components 4 | . 1 . 2 . . . 1 . . . . . Scanalyzer 20 | . . . 11 . . . 7 2 . . . . Insert Component 9 | . . . 5 . . . 3 1 . . . . Analyze 11 | . . . 6 . . . 4 1 . . . . Garrison Access Hacks . | . . . . . . . . . . . . . Unauthorized Hacks 41 | . 10 . 20 . . . 10 1 . . . . Terminals 32 | . 9 . 15 . . . 7 1 . . . . Track 6 | . . . 5 . . . 1 . . . . . Assimilate 6 | . 4 . 2 . . . . . . . . . Botnet 16 | . 4 . 6 . . . 5 1 . . . . Disrupt 1 | . . . 1 . . . . . . . . . Operators 3 | . 1 . 1 . . . 1 . . . . . Fabricators . | . . . . . . . . . . . . . Repair Stations . | . . . . . . . . . . . . . Recycling Units 8 | . 1 . 5 . . . 2 . . . . . Reject 1 | . . . 1 . . . . . . . . . Mask 3 | . . . 2 . . . 1 . . . . . Tunnel 4 | . 1 . 2 . . . 1 . . . . . Scanalyzers . | . . . . . . . . . . . . . Garrison Access 1 | . . . . . . . 1 . . . . . Intercept 1 | . . . . . . . 1 . . . . . Data Cores Recovered . | . . . . . . . . . . . . . Used . | . . . . . . . . . . . . . Hacking Detections 52 | . 9 1 14 1 . . 17 10 . . . . Full Trace Events 9 | . 2 1 1 . . . 4 1 . . . . Feedback Events . | . . . . . . . . . . . . . Feedback Blocked . | . . . . . . . . . . . . . Robot Schematics Acquired 1 | . . . . . . . . 1 . . . . Robots Built 4 | . . . . . . . . 4 . . . . Authchips . | . . . . . . . . . . . . . Time 67 | . . . . . . . . 67 . . . . Total Robot Build Rating 16 | . . . . . . . . 16 . . . . Part Schematics Acquired 7 | . . . 5 . . . 1 1 . . . . Parts Built . | . . . . . . . . . . . . . Authchips . | . . . . . . . . . . . . . Time . | . . . . . . . . . . . . . Total Part Build Rating . | . . . . . . . . . . . . . Part Studies Acquired . | . . . . . . . . . . . . . Parts Repaired 13 | . 3 . 5 . . . 5 . . . . . Time 675 | . 78 . 242 . . . 355 . . . . . Parts Recycled . | . . . . . . . . . . . . . Recycled Matter . | . . . . . . . . . . . . . Retrieved Matter . | . . . . . . . . . . . . . Retrieved Components 22 | . 3 . 10 . . . 9 . . . . . Parts Scanalyzed 7 | . . . 5 . . . 1 1 . . . . Part Schematics Acquired 7 | . . . 5 . . . 1 1 . . . . Parts Damaged 4 | . . . 3 . . . 1 . . . . . Bothacking | -11 -10 -10 -9 -9 -9 -8 -8 -7 -7 -7 -7 -7 ------------ Run | Yrd Mat Min Mat Min Exi Min Mat Fac Low Low Zio Dee Used RIF Installer . | . . . . . . . . . . . . . Robots Hacked . | . . . . . . . . . . . . . Non-combat . | . . . . . . . . . . . . . Combat . | . . . . . . . . . . . . . Robot Hacks Applied . | . . . . . . . . . . . . . Relay Couplers Released 4 | . . . . . . . . 4 . . . . Programmers 4 | . . . . . . . . 4 . . . . Fabnet Peak Effective % . | . . . . . . . . . . . . . Robots Rewired 4 | . . . . . . . . . . 4 . . Allies Hacked 1 | . . . . . . . . 1 . . . . Hacks Repelled . | . . . . . . . . . . . . . Allies | -11 -10 -10 -9 -9 -9 -8 -8 -7 -7 -7 -7 -7 -------- Run | Yrd Mat Min Mat Min Exi Min Mat Fac Low Low Zio Dee Total Allies 17 | . 3 . 1 3 . . . 4 . 4 2 . Largest Group 4 | . 3 3 3 3 3 . . 4 . 4 4 2 Highest-Rated Group 192 | . 30 30 30 40 40 . . 48 . 68 192 192 Highest-Rated Ally 96 | . 10 10 10 16 16 . . 12 . 20 96 96 Total Orders 168 | . 10 2 50 2 13 8 17 29 13 14 9 1 STAY 82 | . 5 1 25 2 6 4 8 13 7 7 4 . ROAM 1 | . . . . . . . 1 . . . . . FOLLOW 77 | . 5 1 25 . 6 4 7 12 6 7 4 . RETURN 8 | . . . . . 1 . 1 4 . . 1 1 Ally Attacks 134 | . . . . 4 60 . . 46 . . 12 12 Total Damage 2450 | . . . . 44 399 . . 614 . . 176 1217 Kills 14 | . . . . 1 2 . . 4 . . . 7 Allies Corrupted . | . . . . . . . . . . . . . Allies Melted . | . . . . . . . . . . . . . Turrets Deployed 1 | . . . . . . . . . . . . 1 Intel | -11 -10 -10 -9 -9 -9 -8 -8 -7 -7 -7 -7 -7 ------- Run | Yrd Mat Min Mat Min Exi Min Mat Fac Low Low Zio Dee Active Infowar (turns) 4847 | 24 2492 . 996 . 28 . 1307 . . . . . Sensors 1 | . . . . . . . 1 . . . . . Terrain 3512 | 24 2492 . 996 . . . . . . . . . Cloaking 1334 | . . . . . 28 . 1306 . . . . . Robot Analysis Total 9 | . 1 3 1 . . . 4 . . . . . Derelict Logs Recovered 8 | . . . . 3 . . . . 2 1 2 . Drone Launches 14 | . . . . . 2 . 1 7 1 1 . 2 Drone Recoveries 9 | . . . . . 1 . 1 5 . . 1 1 Exploration | -11 -10 -10 -9 -9 -9 -8 -8 -7 -7 -7 -7 -7 ------------- Run | Yrd Mat Min Mat Min Exi Min Mat Fac Low Low Zio Dee Turns Passed 38731 | 175 2734 2413 6074 1273 5315 667 6117 2136 2190 2221 6422 994 Spaces Moved 16147 | 104 1212 1007 2764 522 2354 277 2137 900 773 785 2892 420 Core 15 | 15 . . . . . . . . . . . . Treads 2854 | . . . 277 443 958 . 1173 . . . . 3 Legs 7197 | 89 1212 1007 513 . 1396 277 423 831 773 654 . 22 Wheels 6081 | . . . 1974 79 . . 541 69 . 131 2892 395 Hover . | . . . . . . . . . . . . . Flight . | . . . . . . . . . . . . . Fastest Speed 50 | 50 120 190 115 170 120 210 160 175 195 195 165 180 Average Speed 202 | 110 179 209 171 229 198 210 222 193 264 255 199 193 Slowest Speed 400 | 150 190 260 260 240 280 210 400 195 265 265 210 320 Overloaded Moves . | . . . . . . . . . . . . . Propulsion Burnouts . | . . . . . . . . . . . . . Robots Hopped 2 | . . . . . 2 . . . . . . . Potential Cave-ins . | . . . . . . . . . . . . . Cave-ins Triggered . | . . . . . . . . . . . . . Exploration Rate (%) 73 | 5 94 99 98 87 91 52 97 27 76 75 89 68 Regions Visited 12 Branch Regions 8 Pre-discovered Areas 8 | . 1 . 2 . 1 . 1 . 1 . 2 . Known Exits Taken 4 | . . . 1 . . . 1 1 1 . . . Unknown Exits Taken 8 | 1 1 1 . 1 1 1 . . . 1 1 . Scrap Searched 9 | . . 1 . . . 1 . . 1 3 3 . Spaces Dug 87 | . 10 . 6 . . . 14 17 23 7 6 4 Terrain Destroyed 412 | . 44 . 57 35 32 5 101 38 57 17 16 10 Melee 54 | . . . 4 . . . 14 13 12 4 6 1 Projectile 69 | . 10 . 2 . 13 5 5 4 11 10 . 9 AOE 283 | . 34 . 51 35 16 . 82 21 34 . 10 . Terrain Rammed . | . . . . . . . . . . . . . Walls Destroyed . | . . . . . . . . . . . . . Machines Disabled . | . . . . . . . . . . . . . Actions | -11 -10 -10 -9 -9 -9 -8 -8 -7 -7 -7 -7 -7 --------- Run | Yrd Mat Min Mat Min Exi Min Mat Fac Low Low Zio Dee Total 20882 | 133 1658 1294 3910 579 2823 340 3276 1150 864 955 3382 518 Wait 3292 | . 356 254 941 42 209 39 881 89 41 72 346 22 Move 16131 | 103 1211 1006 2763 521 2349 276 2136 899 772 784 2891 420 Hop 2 | . . . . . 2 . . . . . . . Pick Up 174 | 7 11 18 28 1 44 2 24 19 1 4 13 2 Fast Attach 79 | 6 4 1 9 . 14 1 16 8 1 5 13 1 Attach 79 | 1 2 . 10 2 21 . 14 3 1 6 6 13 Detach 19 | . 1 . 1 . 4 . 3 . . 3 5 2 Swap 197 | 1 16 4 29 3 8 2 51 35 13 11 11 13 Drop 158 | . 6 3 29 . 35 3 30 23 . 9 18 2 Fire 626 | 15 51 8 96 10 112 17 104 60 23 35 53 42 Melee 98 | . . . 4 . 21 . 16 14 12 4 26 1 Ram . | . . . . . . . . . . . . . Kick . | . . . . . . . . . . . . . Crush . | . . . . . . . . . . . . . Escape Stasis . | . . . . . . . . . . . . . Rewire 23 | . . . . . . . 1 . . 22 . . Trap 4 | . . . . . 4 . . . . . . . Miscellaneous . | . . . . . . . . . . . . . Route ------- -11/Scrapyard -10/Materials (discovered 6 exits: *Mat x3 / *Min x2 / [*Sub]) -10/Mines (discovered 3 exits: *Mat x2 / [*Sub]) -9/Materials (discovered 5 exits: *Mat x3 / *Min / *Sto) -9/Mines (discovered 4 exits: *Mat x2 / *Exi / *Zio) -9/Exiles -8/Mines -8/Materials (discovered 3 exits: *Fac x3) -7/Factory (discovered 3 exits: [*Fac] / *Low x2) -7/Lower Caves -7/Lower Caves (discovered 2 exits: [*Fac] / *Zio) -7/Zion (discovered 2 exits: [*Dee] / [*Pro]) -7/Deep Caves (discovered 1 exit: [*Pro]) History --------- Turn | Location | Event 14 | -11/Scrapyard | Discovered new exit (range 16) 176 | -11/Scrapyard | Entered Materials 308 | -10/Materials | Build established: Mutant 520 | -10/Materials | Discovered new exit (range 13) 834 | -10/Materials | Discovered new exit (range 7) 872 | -10/Materials | Discovered new exit (range 3) 1160 | -10/Materials | Discovered new exit (range 16) 1522 | -10/Materials | Discovered new exit (range 8) 1762 | -10/Materials | Discovered new exit (range 10) 2621 | -10/Materials | Central database locked down 2696 | -10/Materials | Repaired Lgt. Cannon 2724 | -10/Materials | Repaired Aluminum Leg 2751 | -10/Materials | Repaired Ion Engine 2910 | -10/Materials | Entered Mines 2910 | -10/Mines | Accompanied by 3 allies 3043 | -10/Mines | Found the Drone Emporium 3054 | -10/Mines | Found Prototype Device 3062 | -10/Mines | Identified Sensor Drone Bay 3184 | -10/Mines | Discovered new exit (range 15) 3255 | -10/Mines | Discovered new exit (range 4) 3798 | -10/Mines | A weapon hastily lodged in a ceiling crevice suddenly fell to the ground 4471 | -10/Mines | Found a hidden stash of uninstalled traps 4589 | -10/Mines | Discovered new exit (range 8) 5323 | -10/Mines | Entered Materials 5323 | -9/Materials | Accompanied by 3 allies 5323 | -9/Materials | Evolved 2 slots: Utility x2 6932 | -9/Materials | Lost 3 parts (2n1w) 7079 | -9/Materials | Central database locked down 7255 | -9/Materials | Discovered new exit (range 15) 7866 | -9/Materials | Discovered new exit (range 5) 7986 | -9/Materials | Discovered new exit (range 12) 8820 | -9/Materials | Identified exit to Mines 8820 | -9/Materials | Identified exit to Storage 9453 | -9/Materials | Repaired Imp. EM Shotgun 9486 | -9/Materials | Repaired Shield Generator 9532 | -9/Materials | Repaired Broken EMP Blaster 9597 | -9/Materials | Repaired Broken Hvy. Ion Engine 9649 | -9/Materials | Repaired Hvy. Ion Engine 9723 | -9/Materials | First assault squad dispatched 10238 | -9/Materials | Discovered new exit (range 10) 11397 | -9/Materials | Entered Mines 11404 | -9/Mines | Learned Materials terminal intel 11408 | -9/Mines | Learned 4 Materials zone layouts 11595 | -9/Mines | Discovered new exit (range 5) 11604 | -9/Mines | Assisted by bots powering up and referring to "LRC-V3" 11828 | -9/Mines | Deemed a non-threat by the Exiles lab entrance 11830 | -9/Mines | Discovered new exit (range 5) 11994 | -9/Mines | Discovered new exit (range 14) 12038 | -9/Mines | A Derelict revealed a hidden shortcut to a safe place 12093 | -9/Mines | Learned Materials trap positions 12624 | -9/Mines | Assembled infested the area 12670 | -9/Mines | Entered Exiles 12670 | -9/Exiles | Accompanied by 3 allies 12729 | -9/Exiles | Met 8R-AWN 12767 | -9/Exiles | Met EX-HEX 12863 | -9/Exiles | Met EX-DEC 12875 | -9/Exiles | Learned location of Zion (-7) 12995 | -9/Exiles | Discovered new exit (range 14) 14014 | -9/Exiles | Warned about trapping Exiles lab 14248 | -9/Exiles | Met EX-BIN 14277 | -9/Exiles | Aligned with FarCom system 14280 | -9/Exiles | Given EX-Vault access code 14335 | -9/Exiles | Opened EX-Vault 14352 | -9/Exiles | Found AWS/Thermal 14401 | -9/Exiles | Warned to stay clear of 0b10 Research branches 14799 | -9/Exiles | Attacked by the Exiles 14838 | -9/Exiles | Core integrity fell below 50% 14948 | -9/Exiles | Lost 4 parts (2n1u1w) 14998 | -9/Exiles | Allies destroyed 8R-AWN 15149 | -9/Exiles | Lost 4 parts (1p3u) 15197 | -9/Exiles | Found Prototype Ballistic Gun 16829 | -9/Exiles | Core integrity fell below 20% 16892 | -9/Exiles | Lost 7 parts (1p2n2u2w) 17262 | -9/Exiles | Identified 8R-AWN's Boregun 17324 | -9/Exiles | Destroyed EX-BIN 17450 | -9/Exiles | Destroyed EX-DEC 17499 | -9/Exiles | Found Deploy-a-Sentry 17519 | -9/Exiles | Found Prototype Processor 17522 | -9/Exiles | Identified Exp. Core Analyzer 17535 | -9/Exiles | Found Prototype Device 17540 | -9/Exiles | Identified System Purifier 17587 | -9/Exiles | Destroyed EX-HEX 17985 | -9/Exiles | Left Exiles lab with Deploy-a-Sentry 17985 | -9/Exiles | Entered Mines 17985 | -8/Mines | Accompanied by 1 ally 18637 | -8/Mines | Discovered new exit (range 5) 18652 | -8/Mines | Entered Materials 18652 | -8/Materials | Accompanied by 1 ally 18652 | -8/Materials | Evolved 2 slots: Utility x2 18653 | -8/Materials | Identified exit to Factory 18654 | -8/Materials | Loaded intel: 21 trap records 18655 | -8/Materials | Loaded intel: 12 terminal locations 18944 | -8/Materials | Build established: Scavenger-Mutant 19679 | -8/Materials | Build established: Mutant 20132 | -8/Materials | Lost 7 parts (1p2n3u1w) 20425 | -8/Materials | Build established: Scavenger-Mutant 21888 | -8/Materials | Discovered exit to Factory (range 16) 22371 | -8/Materials | Build established: Mutant 22626 | -8/Materials | Discovered exit to Factory (range 15) 23490 | -8/Materials | Repaired Broken System Purifier 23571 | -8/Materials | Repaired Cold Fusion Reactor 23652 | -8/Materials | Repaired Hvy. Deuterium Engine 23855 | -8/Materials | Central database locked down 24115 | -8/Materials | Repaired Imp. System Guard 24652 | -8/Materials | First assault squad dispatched 24740 | -8/Materials | Repaired Arm. Treads 24769 | -8/Materials | Entered Factory 24769 | -7/Factory | Evolved 2 slots: Utility x2 25007 | -7/Factory | Identified exit to Lower Caves 25307 | -7/Factory | Discovered new exit (range 16) 25549 | -7/Factory | Fabricated S-27 Virus? 25618 | -7/Factory | Cargo convoy interrupted 25699 | -7/Factory | Found Prototype Device 25720 | -7/Factory | Found Prototype Device 25721 | -7/Factory | Identified Adv. EM Shield (x2) 25924 | -7/Factory | P-60 Hacker assimilated allied Virus 4b 26905 | -7/Factory | Entered Lower Caves 27119 | -7/Lower Caves | Identified exit to Lower Caves 29043 | -7/Lower Caves | Attracted the attention of an 0b10 outpost 29095 | -7/Lower Caves | Entered another Lower Caves area 29144 | -7/Lower Caves | Encountered a Warlord checkpoint 29270 | -7/Lower Caves | Discovered new exit (range 11) 29498 | -7/Lower Caves | Attacked by a delusional Derelict stockpiling Unaware 30064 | -7/Lower Caves | Build established: Commander-Mutant 30539 | -7/Lower Caves | Discovered new exit (range 12) 31316 | -7/Lower Caves | Entered Zion 31316 | -7/Zion | Accompanied by 5 allies 31379 | -7/Zion | Given A8's code to call for help 31415 | -7/Zion | System corruption cleaned by Quarantine Array 31589 | -7/Zion | Discovered new exit (range 14) 32015 | -7/Zion | Learned 4 Factory zone layouts 32667 | -7/Zion | Learned location of Data Miner (-6) 32889 | -7/Zion | Found Prototype Launcher 32889 | -7/Zion | Identified Rocket Array 33538 | -7/Zion | Found GAL Module 33646 | -7/Zion | Met Imprinter 36968 | -7/Zion | Warned about damaging Zion machinery 37116 | -7/Zion | Attacked by Zionites 37159 | -7/Zion | Lost 4 allies 37244 | -7/Zion | Destroyed Imprinter 37249 | -7/Zion | Extracted access codes from Imprinter's data core 37363 | -7/Zion | System corruption reached 10% 37439 | -7/Zion | Opened final containment barrier to the Deep Caves 37462 | -7/Zion | Discovered new exit (range 5) 37548 | -7/Zion | Build established: Scavenger-Mutant 37701 | -7/Zion | Enhanced Grunt warped into view, answering call for help 37704 | -7/Zion | Enhanced Grunt warped into view, answering call for help 37731 | -7/Zion | Saw the warning signs outside the Deep Caves entrance 37738 | -7/Zion | Entered Deep Caves 37738 | -7/Deep Caves | Accompanied by 2 allies 37980 | -7/Deep Caves | Build established: Mutant 38038 | -7/Deep Caves | Z-Facility disabled 38080 | -7/Deep Caves | Lost 3 parts (1n1u1w) 38080 | -7/Deep Caves | Lost 3 allies 38436 | -7/Deep Caves | Discovered new exit (range 10) 38581 | -7/Deep Caves | Spotted AG-28222 38606 | -7/Deep Caves | Destroyed AG-28222 38631 | -7/Deep Caves | Lost 5 parts (1p1n3u) 38660 | -7/Deep Caves | Triggered Deep Caves wall 38672 | -7/Deep Caves | Found GOLEM Unit 38674 | -7/Deep Caves | DAS Turret deployed 38682 | -7/Deep Caves | Spotted AG-45802 38704 | -7/Deep Caves | Core integrity fell below 50% 38708 | -7/Deep Caves | Destroyed 35 combat bots 38720 | -7/Deep Caves | Core integrity fell below 20% 38732 | -7/Deep Caves | Destroyed by AG-45802 with Assembled Focal Cannon Last Messages --------------- 38714_ Knocked back. 38716_ Adv. Targeting Computer destroyed. 38716_ System corrupted by crushing effect (+4). 38716_ Acquired Imp. Deuterium Engine. 38719_ Tesla Rifle destroyed. 38719_ Mak. Light Armor Plating destroyed. 38722_ HV Slug penetrates as-70116. 38722_ HV Slug penetrates as-82850. 38722_ as-82850 suffers critical hit (Destroy). 38722_ as-82850 destroyed. 38724_ Imp. Deuterium Engine destroyed. 38725_ HV Slug penetrates as-70116. 38725_ 8R-AWN's Boregun destroyed. 38726_ Adv. Myomer Leg destroyed. 38726_ System corrupted by crushing effect (+3). 38726_ Knocked back. 38728_ GOLEM Unit destroyed. 38728_ Rocket Array destroyed. 38731_ Med. Treads destroyed. 38732_ Hvy. Gatling Laser destroyed. Map ----- +----------------------------------------------------+ | ???????????????????????????????## #????? | | ?????????? ??????????????????# #????# | | ?????????? ????????????????# #???## | | ?????????" ?????????????## #??## | | ????????? ????????????## #??# | | ????????? ] ??????????## #### | | ????????? ] ????????## ## | | ????????? ???????# # | | ???????? ?????# ## | | ???????? ????# #?## | | ??????? = #??# ???# # | | ???????? g ## ???## ## | | ??????? ## ?????# ### | | ???????? * ## ??????# #?# | | ????????? ;## ???????# #?# | | ?????????" = #?#?????#### #?# | | ?????????" a * b #???????# #?# | | ?????????" * #???????# #?# | | ?????????" ** ###????## ####?# | | ????????"" ;#???## ###### | | ????????# ! ;#??## ## | | ????????" [ * s #???# "" ## | | ????????" a ##### """ ## | | ????????" [ * " ## | | ????????""" =% aa | | ????????" % aa@ ## | | ????????"" b # ###< # # | | ????????" ## ## #?######## | | ????????"" ######## ######### | | ????????" # ; #??????# | | ????????" #### ;# ## ##??????# | | ????????""" ###??# ## ####???????########### | | ?????????" ????#### #?????????????????????? | | ?????????######????????#??????????????????????? | | | | | | | | | | | | | | | | | | | | | | | | | | | | | | | | | +----------------------------------------------------+ Best States ------------- Heat Dissipation 61 Coolant Potential 65 Energy Generation 21 Energy Capacity 310 Matter Stores 300 Matter Capacity 300 Sight Range 16 Terrain Scan Range 16 Terrain Scan Density 10 Cloak Strength 3 Armor Coverage 925 Resistance: TH 10 Resistance: EM 50 Weapon Cycling 15 Evasion (%) 55 Targeting Accuracy 8 Target Analysis 6 Core Analysis 8 Armor Integrity Analysis 40 Recoil Reduction 2 Offensive Hacking 10 Defensive Hacking 11 Authchip Count 1 Trap Extractor Capacity 4 Item Schematics ----------------- Hvy. Ion Engine | -9/Materials | Scanalyzed EMP Blaster | -9/Materials | Scanalyzed Target Analyzer | -9/Materials | Scanalyzed Hardlight Generator | -9/Materials | Scanalyzed Hcp. Matter Pod | -9/Materials | Scanalyzed System Purifier | -8/Materials | Scanalyzed Hrd. Heavy Armor Plating | -7/Factory | Scanalyzed Robot Schematics ------------------ I-36 Angel | -7/Factory | Hacked Fabricated ------------ S-27 Virus | x4 | -7/Factory | Preloaded Repaired ---------- Lgt. Cannon | 25% | -10/Materials Aluminum Leg | 17% | -10/Materials Ion Engine | 53% | -10/Materials Imp. EM Shotgun | 4% | -9/Materials Shield Generator | 6% | -9/Materials EMP Blaster | 99% | -9/Materials | Broken Hvy. Ion Engine | 99% | -9/Materials | Broken Hvy. Ion Engine | 56% | -9/Materials System Purifier | 88% | -8/Materials | Broken Cold Fusion Reactor | 78% | -8/Materials Hvy. Deuterium Engine | 75% | -8/Materials Imp. System Guard | 73% | -8/Materials Arm. Treads | 95% | -8/Materials Studied --------- None Alien Tech Used ----------------- None Achievements -------------- Botjacking Drive-By My Business Is Booming Resistances Are Futile Challenges ------------ None Game ------ Seed TowerAntimatterBotcube Manual? 0 Play Time 04:53:29 Cumulative 695.8 hours Start 2025.11.15 @ 21:06:27 End 2025.11.16 @ 02:50:53 Sessions 1 Manual Loads 0 Difficulty Rogue Special Mode None Game No. 489 Rogue 489 Adventurer 0 Explorer 0 Win Type - Total 1 Types 1/0/0/0/0/0/0/0/0/0 Lore% 65 Gallery% 67 Achievement% 44 Wizard Run 0 Options --------- Layout 1 ASCII 0 Keyboard 0 Movement Mouse Keybinds 0 Fullscreen 1 Font 20/SmallcapsGlow Map View 54x42 Zoom Use 0% Tactical HUD 1 Map Filters NONE Filters NONE Steam 1 RUN: ddf5675f-b08f-4650-83d5-8c0d6bec5cc2